[Event "IND-ch Women 2019"]
[Site "Karaikkudi"]
[Date "2019.07.25"]
[Round "9.12"]
[White "Sharma Isha"]
[Black "Potluri Saye Srreezza"]
[Result "1-0"]
[ECO "B01"]
[WhiteElo "2188"]
[BlackElo "1999"]
[Annotator "NA"]
[PlyCount "93"]
[EventDate "2019.07.19"]
[EventType "swiss"]
[EventCountry "IND"]
[SourceTitle "playchess.com"]
[Source "ChessBase"]
[SourceQuality "1"]
[TimeControl "40/5400+30:1800+30"]

1. e4 {[%emt 0:00:00]} d5 {[%emt 0:00:00]} 2. exd5 {[%emt 0:00:00]} Qxd5 {[%emt 0:00:00]} 3. Nc3 {[%emt 0:00:00]} Qa5 {[%emt 0:00:00]} 4. d4 {[%emt 0:00:12]} c6 {[%emt 0:00:04]} 5. Nf3 {[%emt 0:00:09]} Nf6 {[%emt 0:00:15]} 6. Bd2 {[%emt 0:00:05]} Qc7 {[%emt 0:00:35]} 7. g3 {[%emt 0:01:38] B01: Scandinavian Defence} (7. Bc4 Bf5 8. Ne5 e6 9. g4 Be4 10. Nxe4 Nxe4 11. Bf4 Nd7 12. Qf3 Nxe5 13. Bxe5 Nd6 14. O-O-O O-O-O 15. Bb3 Rg8 16. c4 Qd7 17. Qe3 {½-½ (68) Gabrielian,A (2560)-Bocharov,I (2472) Kaliningrad 2015}) 7... Bg4 {[%emt 0:03:26]} 8. Bg2 {[%emt 0:02:12]} e6 {[%emt 0:00:37]} 9. O-O {[%emt 0:01:20]} Bd6 {[%emt 0:00:32]} 10. Ne2 {[%emt 0:00:44]} Nbd7 {[%emt 0:01:31]} 11. c4 $146 {[%emt 0:03:23]} ({Predecessor:} 11. Re1 O-O 12. h3 Bh5 13. Nf4 Bxf3 14. Qxf3 Nb6 {½-½ (23) Redondo Arguelles,L-Aparicio Garcia,E Asturias 1997}) 11... b6 {[%emt 0:04:14]} 12. b4 {[%emt 0:03:28]} O-O {[%emt 0:08:25]} 13. c5 {[%emt 0:01:57]} Be7 {[%emt 0:09:12]} 14. Bf4 {[%emt 0:02:06]} Qc8 {[%emt 0:02:22]} 15. Nc3 {[%emt 0:03:22]} Nd5 {[%emt 0:03:33]} 16. Nxd5 {[%emt 0:01:49]} exd5 {[%emt 0:01:00]} 17. h3 {[%emt 0:00:47]} Bxf3 {[%emt 0:00:55]} 18. Bxf3 {[%emt 0:01:26]} b5 {[%emt 0:01:50]} 19. Re1 {[%emt 0:00:21]} Re8 {[%emt 0:00:28]} 20. a4 {[%emt 0:04:06]} a6 {[%emt 0:08:38]} 21. axb5 {[%emt 0:13:49]} axb5 {[%emt 0:00:15]} 22. Bg4 {[%emt 0:00:03]} Rxa1 {[%emt 0:12:19]} 23. Qxa1 $11 {[%emt 0:00:06]} Bf6 {[%emt 0:00:45]} 24. Bd6 {[%emt 0:06:58]} Qd8 {[%emt 0:16:12]} 25. Rd1 {[%emt 0:01:23]} Nf8 {[%emt 0:17:54]} 26. Qa6 {[%emt 0:04:34]} h5 {[%emt 0:02:34]} 27. Bxh5 {[%emt 0:03:16]} Qc8 {[%emt 0:00:21]} 28. Qa7 {[%emt 0:02:26]} g6 {[%emt 0:04:04]} 29. Bg4 {[%emt 0:00:37]} Ne6 {[%emt 0:01:36]} 30. Qa1 {[%emt 0:18:19]} Qa8 {[%emt 0:00:48]} 31. Qxa8 {[%emt 0:01:33]} Rxa8 {[%emt 0:00:07]} 32. Bxe6 {[%emt 0:00:09]} fxe6 {[%emt 0:00:06]} 33. Be5 {[%emt 0:00:25]} Kf7 {[%emt 0:00:34]} 34. Kg2 {[%emt 0:00:23]} Ra4 {[%emt 0:00:32]} 35. Rb1 {[%emt 0:00:09]} Bg5 {[%emt 0:00:40]} 36. f4 {[%emt 0:00:34]} Ra2+ {[%emt 0:00:26]} 37. Kf3 {[%emt 0:00:07]} Ra3+ {[%emt 0:00:09]} 38. Kg4 {[%emt 0:02:08]} Bd8 {[%emt 0:00:10]} 39. Rb2 {[%emt 0:00:25]} Be7 {[%emt 0:00:17]} 40. Bc7 {[%emt 0:00:00]} Bf6 {[%emt 0:00:00]} 41. Be5 {[%emt 0:02:17]} Be7 {[%emt 0:01:13]} 42. h4 {[%emt 0:00:13]} Bd8 {[%emt 0:00:30]} 43. Rh2 {[%emt 0:03:01]} Ra4 {[%emt 0:04:03]} 44. h5 {[%emt 0:00:25]} gxh5+ {[%emt 0:01:05]} 45. Rxh5 {[%emt 0:00:03]} Rxb4 {[%emt 0:00:14]} 46. Rh7+ {[%emt 0:00:08]} Ke8 {[%emt 0:00:13]} 47. f5 {[%emt 0:02:11]} 1-0

[Event "IND-ch Women 2019"]
[Site "Karaikkudi"]
[Date "2019.07.25"]
[Round "9.13"]
[White "Bakshi, Rutuja"]
[Black "Parnali, S Dharia"]
[Result "1/2-1/2"]
[ECO "E02"]
[WhiteElo "1958"]
[BlackElo "2145"]
[Annotator "ChessBase"]
[PlyCount "22"]
[EventDate "2019.07.19"]
[EventType "swiss"]
[EventCountry "IND"]
[SourceTitle "playchess.com"]
[Source "ChessBase"]
[SourceQuality "1"]
[TimeControl "40/5400+30:1800+30"]

1. Nf3 {[%emt 0:00:00]} d5 {[%emt 0:01:26]} 2. c4 {[%emt 0:00:21]} e6 {[%emt 0:03:21]} 3. d4 {[%emt 0:00:28]} Nf6 {[%emt 0:00:25]} 4. g3 {[%emt 0:00:04]} dxc4 {[%emt 0:07:46]} 5. Qa4+ {[%emt 0:05:32]} Bd7 {[%emt 0:01:27]} 6. Qxc4 {[%emt 0:00:10]} Bc6 {[%emt 0:00:07]} 7. Bg2 {[%emt 0:00:32]} Bd5 {[%emt 0:01:08]} 8. Qd3 {[%emt 0:02:32]} Be4 {[%emt 0:00:38]} 9. Qc4 {[%emt 0:02:31]} Bd5 {[%emt 0:03:06]} 10. Qd3 {[%emt 0:00:10]} Be4 {[%emt 0:00:16]} 11. Qc4 {[%emt 0:00:08]} Bd5 {[%emt 0:43:51]} 1/2-1/2

[Event "IND-ch Women 2019"]
[Site "Karaikkudi"]
[Date "2019.07.25"]
[Round "9.14"]
[White "Jain Nityata"]
[Black "Sanskriti Goyal"]
[Result "1-0"]
[ECO "B09"]
[WhiteElo "2135"]
[BlackElo "1948"]
[Annotator "NA"]
[PlyCount "81"]
[EventDate "2019.07.19"]
[EventType "swiss"]
[EventCountry "IND"]
[SourceTitle "playchess.com"]
[Source "ChessBase"]
[SourceQuality "1"]
[TimeControl "40/5400+30:1800+30"]

1. e4 {[%emt 0:00:00]} d6 {[%emt 0:00:00]} 2. d4 {[%emt 0:00:00]} Nf6 {[%emt 0:00:00]} 3. Nc3 {[%emt 0:00:00]} g6 {[%emt 0:00:00]} 4. f4 {[%emt 0:00:01]} Bg7 {[%emt 0:00:41]} 5. Nf3 {[%emt 0:00:06]} O-O {[%emt 0:00:06]} 6. e5 {[%emt 0:00:02]} Nfd7 {[%emt 0:00:29]} 7. Bc4 {[%emt 0:00:08]} Nb6 {[%emt 0:08:15]} 8. Bb3 {[%emt 0:00:13]} Nc6 {[%emt 0:00:44]} 9. a4 {[%emt 0:00:32]} dxe5 {[%emt 0:13:53]} 10. fxe5 {[%emt 0:05:24]} Bg4 {[%emt 0:01:23]} 11. a5 {[%emt 0:08:19]} Bxf3 {[%emt 0:02:47]} 12. gxf3 {[%emt 0:00:46]} Nc8 {[%emt 0:01:01]} 13. Be3 {[%emt 0:03:20]} e6 {[%emt 0:05:56]} 14. Ne4 {[%emt 0:13:30]} Qh4+ {[%emt 0:20:13]} 15. Bf2 $14 {[%emt 0:03:51]} Qf4 {[%emt 0:00:22]} 16. Qe2 {[%emt 0:06:37]} h5 {[%emt 0:10:55]} 17. h4 {[%emt 0:07:47]} Bh6 {[%emt 0:02:04]} 18. c3 {[%emt 0:16:54]} N8e7 {[%emt 0:03:33]} 19. Bg3 {[%emt 0:05:35]} Qe3 {[%emt 0:04:56]} 20. Qxe3 {[%emt 0:01:09]} Bxe3 {[%emt 0:00:02]} 21. f4 {[%emt 0:02:21]} Nf5 {[%emt 0:01:31]} 22. Rf1 {[%emt 0:03:35]} Nce7 {[%emt 0:06:48]} 23. Rf3 {[%emt 0:06:40]} Rfd8 {[%emt 0:05:19]} 24. Rd1 {[%emt 0:02:05]} b6 {[%emt 0:04:37]} 25. axb6 {[%emt 0:06:49]} axb6 {[%emt 0:00:06]} 26. Ke2 {[%emt 0:00:15]} Bxd4 {[%emt 0:00:48]} 27. Rfd3 {[%emt 0:02:29]} Nc6 {[%emt 0:04:54]} 28. cxd4 {[%emt 0:00:21]} Nfxd4+ {[%emt 0:00:06]} 29. Ke1 {[%emt 0:01:21]} Nxb3 {[%emt 0:01:17]} 30. Rxb3 {[%emt 0:01:18]} Rxd1+ {[%emt 0:01:11]} 31. Kxd1 {[%emt 0:00:01]} Rd8+ {[%emt 0:00:51]} 32. Ke1 {[%emt 0:00:46]} Ne7 {[%emt 0:00:20]} 33. Nf6+ {[%emt 0:01:29]} Kf8 {[%emt 0:00:02]} 34. Bf2 {[%emt 0:01:36]} Nd5 {[%emt 0:01:01]} 35. Nxd5 {[%emt 0:00:11]} exd5 {[%emt 0:00:11]} 36. Rc3 {[%emt 0:00:37]} Rd7 {[%emt 0:00:13]} 37. Rc6 {[%emt 0:00:14]} Ke7 {[%emt 0:00:20]} 38. Kd2 {[%emt 0:00:14]} Kd8 {[%emt 0:00:49]} 39. Kd3 {[%emt 0:01:31]} Re7 {[%emt 0:00:50]} 40. Kd4 {[%emt 0:00:00]} Kd7 {[%emt 0:00:00]} 41. Kxd5 {[%emt 0:02:00]} 1-0

[Event "IND-ch Women 2019"]
[Site "Karaikkudi"]
[Date "2019.07.25"]
[Round "9.15"]
[White "Kiran, Manisha Mohanty"]
[Black "Meghna, C H"]
[Result "1/2-1/2"]
[ECO "C15"]
[WhiteElo "2054"]
[BlackElo "1903"]
[Annotator "NA"]
[PlyCount "64"]
[EventDate "2019.07.19"]
[EventType "swiss"]
[EventCountry "IND"]
[SourceTitle "playchess.com"]
[Source "ChessBase"]
[SourceQuality "1"]
[TimeControl "40/5400+30:1800+30"]

1. e4 {[%emt 0:00:00]} e6 {[%emt 0:00:00]} 2. d4 {[%emt 0:00:00]} d5 {[%emt 0:00:00]} 3. Nc3 {[%emt 0:00:00]} Bb4 {[%emt 0:00:00]} 4. a3 {[%emt 0:00:09]} Bxc3+ {[%emt 0:00:00]} 5. bxc3 {[%emt 0:00:05]} dxe4 {[%emt 0:00:13]} 6. Qg4 $11 {[%emt 0:00:20]} Nf6 {[%emt 0:00:06]} 7. Qxg7 {[%emt 0:00:08]} Rg8 {[%emt 0:00:02]} 8. Qh6 {[%emt 0:00:10]} Bd7 {[%emt 0:00:21]} 9. Bg5 {[%emt 0:00:29]} Rg6 {[%emt 0:02:23]} 10. Qh4 {[%emt 0:04:39]} Ba4 {[%emt 0:08:31]} 11. Ne2 {[%emt 0:02:46]} Nbd7 {[%emt 0:00:38]} 12. Nf4 {[%emt 0:00:16]} Rg8 13. Be2 {[%emt 0:00:30]} Qe7 14. Nh5 {[%emt 0:00:30]} Rg6 15. Nxf6+ {[%emt 0:00:30]} Nxf6 16. Bh5 {[%emt 0:00:30]} Rxg5 17. Qxg5 {[%emt 0:00:30]} O-O-O 18. Be2 {[%emt 0:00:30]} Bxc2 19. Qa5 {[%emt 0:00:30]} Kb8 20. Ra2 {[%emt 0:00:30]} Bd3 21. Rb2 {[%emt 0:00:30]} Nd5 22. Bxd3 {[%emt 0:00:30]} exd3 23. c4 {[%emt 0:00:30]} Nf4 24. g3 {[%emt 0:00:30]} Ne2 25. Qb4 {[%emt 0:00:30]} Qxb4+ 26. axb4 {[%emt 0:00:30]} Nxd4 27. Kd2 {[%emt 0:00:30]} Nf3+ 28. Ke3 {[%emt 0:00:30]} Ne5 29. Rc1 {[%emt 0:00:30]} Ng4+ 30. Kf3 {[%emt 0:00:30]} Ne5+ 31. Ke3 {[%emt 0:00:30]} Ng4+ 32. Kf3 {[%emt 0:00:30]} Ne5+ 1/2-1/2

[Event "IND-ch Women 2019"]
[Site "Karaikkudi"]
[Date "2019.07.25"]
[Round "9.16"]
[White "Bala Kannamma P"]
[Black "Pandey Srishti"]
[Result "1-0"]
[ECO "B10"]
[WhiteElo "2051"]
[BlackElo "1882"]
[Annotator "NA"]
[PlyCount "189"]
[EventDate "2019.07.19"]
[EventType "swiss"]
[EventCountry "IND"]
[SourceTitle "playchess.com"]
[Source "ChessBase"]
[SourceQuality "1"]
[TimeControl "40/5400+30:1800+30"]

1. e4 {[%emt 0:00:00]} c6 {[%emt 0:00:00]} 2. d3 {[%emt 0:00:07]} d5 {[%emt 0:00:00]} 3. Nd2 {[%emt 0:00:05]} Nd7 {[%emt 0:03:43]} 4. g3 {[%emt 0:04:19]} e6 {[%emt 0:00:33]} 5. Bg2 {[%emt 0:00:27]} Ngf6 {[%emt 0:00:22]} 6. Ngf3 {[%emt 0:00:57]} dxe4 {[%emt 0:00:58]} 7. dxe4 {[%emt 0:05:38]} Bc5 {[%emt 0:00:14]} 8. O-O {[%emt 0:00:33]} O-O {[%emt 0:00:06]} 9. Qe2 $11 {[%emt 0:09:04]} ({White should play} 9. e5 $16 Ng4 10. Qe2) 9... b6 {[%emt 0:17:27]} 10. b3 {[%emt 0:03:40]} a5 {[%emt 0:01:28]} 11. Bb2 {[%emt 0:02:59]} Ba6 {[%emt 0:00:17]} 12. c4 {[%emt 0:00:24]} a4 {[%emt 0:05:35]} 13. bxa4 {[%emt 0:08:35]} Be7 {[%emt 0:05:33]} 14. Rfd1 {[%emt 0:09:06]} Qc7 {[%emt 0:00:16]} 15. e5 {[%emt 0:02:39]} Ng4 {[%emt 0:05:09]} 16. h3 {[%emt 0:04:52]} Nh6 {[%emt 0:00:17]} 17. Ne4 {[%emt 0:02:25]} Nf5 {[%emt 0:07:40]} 18. Nd6 {[%emt 0:14:46]} Nxd6 {[%emt 0:14:30]} 19. exd6 {[%emt 0:00:49]} Bxd6 {[%emt 0:00:01]} 20. Qd2 {[%emt 0:03:56]} Be5 {[%emt 0:02:46]} 21. Nxe5 {[%emt 0:00:20]} Nxe5 {[%emt 0:00:06]} 22. Qf4 {[%emt 0:00:05]} f6 {[%emt 0:00:45]} 23. Bxe5 {[%emt 0:00:02]} fxe5 {[%emt 0:01:04]} 24. Qg4 {[%emt 0:07:08]} Qf7 {[%emt 0:00:10]} 25. Rd2 {[%emt 0:00:41]} Bb7 {[%emt 0:03:06]} 26. Rad1 {[%emt 0:02:26]} Rae8 {[%emt 0:11:15]} 27. Qe2 {[%emt 0:01:24]} Re7 {[%emt 0:13:34]} 28. c5 {[%emt 0:02:55]} bxc5 {[%emt 0:01:48]} 29. Qxe5 {[%emt 0:00:02]} c4 {[%emt 0:00:06]} 30. Rc1 {[%emt 0:03:14]} c5 {[%emt 0:00:56]} 31. Bxb7 {[%emt 0:01:28]} Rxb7 {[%emt 0:00:01]} 32. Qe4 {[%emt 0:04:12]} c3 {[%emt 0:05:17]} 33. Rxc3 {[%emt 0:01:17]} Rd7 {[%emt 0:00:05]} 34. Qe1 {[%emt 0:01:48]} Rd4 {[%emt 0:01:07]} 35. Rxc5 {[%emt 0:00:52]} Rxa4 {[%emt 0:00:11]} 36. Re5 {[%emt 0:00:24]} Ra6 {[%emt 0:00:49]} 37. Qe2 {[%emt 0:01:45]} Rc6 {[%emt 0:00:13]} 38. Rc2 {[%emt 0:02:07]} Rb6 {[%emt 0:00:01]} 39. Rb2 {[%emt 0:00:44]} Rc6 {[%emt 0:00:05]} 40. Rc2 {[%emt 0:00:00]} Rb6 {[%emt 0:00:00]} 41. Rb5 {[%emt 0:04:26]} Rd6 {[%emt 0:04:26]} 42. Rb1 {[%emt 0:02:18]} Qf5 {[%emt 0:00:35]} 43. h4 {[%emt 0:04:10]} h6 {[%emt 0:03:30]} 44. Re1 {[%emt 0:03:17]} Ra8 {[%emt 0:08:28]} 45. Qe4 {[%emt 0:04:38]} Qxe4 {[%emt 0:01:32]} 46. Rxe4 {[%emt 0:00:02]} Rda6 {[%emt 0:00:12]} 47. Ree2 {[%emt 0:00:33]} R8a7 {[%emt 0:00:19]} 48. Kf1 {[%emt 0:00:13]} Kf7 {[%emt 0:00:08]} 49. Red2 {[%emt 0:00:19]} Kf6 {[%emt 0:00:36]} 50. Ke2 {[%emt 0:00:45]} g5 {[%emt 0:02:12]} 51. hxg5+ {[%emt 0:00:37]} hxg5 {[%emt 0:00:02]} 52. Kd1 {[%emt 0:00:46]} Ra4 {[%emt 0:01:23]} 53. Kc1 {[%emt 0:00:51]} e5 {[%emt 0:02:53]} 54. Kb1 {[%emt 0:01:44]} Kf5 {[%emt 0:01:31]} 55. Rc3 {[%emt 0:02:51]} Ra8 {[%emt 0:02:09]} 56. Rb2 {[%emt 0:00:26]} R8a5 {[%emt 0:00:34]} 57. Rf3+ {[%emt 0:02:08]} Kg4 {[%emt 0:00:12]} 58. Re3 {[%emt 0:00:07]} Kf5 {[%emt 0:00:07]} 59. Reb3 {[%emt 0:02:50]} Ra8 {[%emt 0:01:56]} 60. Rb4 {[%emt 0:01:39]} R4a5 {[%emt 0:00:23]} 61. g4+ {[%emt 0:00:16]} Ke6 {[%emt 0:00:34]} 62. Rd2 {[%emt 0:02:05]} R8a6 {[%emt 0:00:16]} 63. f3 {[%emt 0:01:40]} Ra3 {[%emt 0:00:22]} 64. Rb3 {[%emt 0:00:43]} R3a4 {[%emt 0:00:02]} 65. Rb5 {[%emt 0:01:15]} Kf6 {[%emt 0:00:24]} 66. Re2 {[%emt 0:00:48]} Re6 {[%emt 0:00:08]} 67. Re4 {[%emt 0:00:13]} Ra3 {[%emt 0:00:38]} 68. Rb3 {[%emt 0:00:10]} Rea6 {[%emt 0:00:24]} 69. Re2 {[%emt 0:01:18]} R3a5 {[%emt 0:00:11]} 70. Reb2 {[%emt 0:00:12]} Ke6 {[%emt 0:01:05]} 71. Rb6+ {[%emt 0:00:55]} Kd5 {[%emt 0:00:16]} 72. Rd2+ {[%emt 0:00:28]} Kc5 {[%emt 0:00:25]} 73. Rbb2 {[%emt 0:00:30]} Rf6 {[%emt 0:00:25]} 74. Rbc2+ {[%emt 0:00:14]} Kb6 {[%emt 0:00:19]} 75. Rc3 {[%emt 0:00:23]} Rb5+ {[%emt 0:00:13]} 76. Rb2 {[%emt 0:00:35]} Re6 {[%emt 0:01:04]} 77. a4 {[%emt 0:01:04]} Rxb2+ {[%emt 0:00:14]} 78. Kxb2 {[%emt 0:00:03]} Rd6 {[%emt 0:00:53]} 79. Kb3 {[%emt 0:00:41]} Rd4 {[%emt 0:00:30]} 80. Re3 {[%emt 0:00:32]} Rd5 {[%emt 0:01:35]} 81. Kc3 {[%emt 0:00:29]} Kc6 {[%emt 0:00:23]} 82. Kc2 {[%emt 0:00:53]} Ra5 {[%emt 0:00:22]} 83. Ra3 {[%emt 0:01:06]} Kd5 {[%emt 0:01:27]} 84. Kd3 {[%emt 0:00:11]} Kd6 {[%emt 0:00:47]} 85. Kc4 {[%emt 0:00:29]} Ra8 {[%emt 0:01:21]} 86. a5 {[%emt 0:00:11]} e4 {[%emt 0:00:03]} 87. fxe4 {[%emt 0:00:18]} Ke5 {[%emt 0:00:01]} 88. a6 {[%emt 0:01:15]} Kf4 {[%emt 0:00:29]} 89. a7 {[%emt 0:00:37]} Kxg4 {[%emt 0:00:04]} 90. Kd5 {[%emt 0:01:02]} Kf4 {[%emt 0:00:07]} 91. Ra4 {[%emt 0:00:08]} g4 {[%emt 0:00:47]} 92. e5+ {[%emt 0:00:06]} Kf5 {[%emt 0:00:11]} 93. Kc6 {[%emt 0:01:17]} g3 {[%emt 0:00:28]} 94. Kb7 {[%emt 0:00:21]} g2 {[%emt 0:03:24]} 95. Ra1 {[%emt 0:00:05]} 1-0

[Event "IND-ch Women 2019"]
[Site "Karaikkudi"]
[Date "2019.07.25"]
[Round "9.17"]
[White "Ramaswamy, Aarthie"]
[Black "Sunyasakta, Satpathy"]
[Result "1-0"]
[ECO "C90"]
[WhiteElo "2020"]
[BlackElo "1801"]
[Annotator "NA"]
[PlyCount "57"]
[EventDate "2019.07.19"]
[EventType "swiss"]
[EventCountry "IND"]
[SourceTitle "playchess.com"]
[Source "ChessBase"]
[SourceQuality "1"]
[TimeControl "40/5400+30:1800+30"]

1. e4 {[%emt 0:01:24]} e5 {[%emt 0:00:27]} 2. Nf3 {[%emt 0:00:04]} Nc6 {[%emt 0:00:05]} 3. Bb5 {[%emt 0:00:03]} a6 {[%emt 0:00:07]} 4. Ba4 {[%emt 0:00:03]} Nf6 {[%emt 0:00:07]} 5. O-O {[%emt 0:00:12]} Be7 {[%emt 0:00:40]} 6. d3 {[%emt 0:00:06]} b5 {[%emt 0:00:24]} 7. Bb3 {[%emt 0:00:02]} d6 {[%emt 0:00:19]} 8. c3 {[%emt 0:00:17]} O-O {[%emt 0:00:55]} 9. Re1 {[%emt 0:00:39]} Na5 {[%emt 0:00:33]} 10. Bc2 {[%emt 0:00:07]} c5 {[%emt 0:00:29]} 11. Nbd2 {[%emt 0:03:51]} Re8 {[%emt 0:02:10]} 12. Nf1 {[%emt 0:02:05]} h6 {[%emt 0:00:32]} 13. Ng3 {[%emt 0:02:05]} Bf8 {[%emt 0:00:50]} 14. h3 {[%emt 0:02:11]} Nc6 {[%emt 0:03:12]} 15. d4 {[%emt 0:02:22]} cxd4 {[%emt 0:03:41]} 16. cxd4 {[%emt 0:00:27]} exd4 {[%emt 0:01:25]} 17. Nxd4 {[%emt 0:00:35]} Nxd4 {[%emt 0:02:24]} 18. Qxd4 {[%emt 0:03:05]} Bb7 {[%emt 0:07:15]} 19. Bf4 {[%emt 0:17:31]} Rc8 {[%emt 0:03:39]} 20. Bb3 {[%emt 0:11:57]} d5 $14 {[%emt 0:15:34]} 21. exd5 {[%emt 0:10:15]} Rxe1+ {[%emt 0:11:24]} 22. Rxe1 {[%emt 0:00:02]} Bc5 {[%emt 0:04:28]} 23. Qd2 {[%emt 0:08:25]} Nxd5 {[%emt 0:07:02]} 24. Rd1 {[%emt 0:04:51]} Qf6 {[%emt 0:12:13]} 25. Nh5 {[%emt 0:11:26]} Qh4 {[%emt 0:01:11]} 26. Bxd5 {[%emt 0:01:13]} Bxd5 {[%emt 0:02:09]} 27. Qxd5 {[%emt 0:02:07]} Bxf2+ {[%emt 0:05:36]} 28. Kh2 {[%emt 0:02:41]} Bb6 {[%emt 0:12:25]} 29. Qe5 {[%emt 0:02:08]} 1-0

[Event "IND-ch Women 2019"]
[Site "Karaikkudi"]
[Date "2019.07.25"]
[Round "9.18"]
[White "Saranya, J."]
[Black "Sunyuktha C M N"]
[Result "1-0"]
[ECO "B90"]
[WhiteElo "2067"]
[BlackElo "1815"]
[Annotator "NA"]
[PlyCount "95"]
[EventDate "2019.07.19"]
[EventType "swiss"]
[EventCountry "IND"]
[SourceTitle "playchess.com"]
[Source "ChessBase"]
[SourceQuality "1"]
[TimeControl "40/5400+30:1800+30"]

1. e4 {[%emt 0:00:00]} c5 {[%emt 0:00:00]} 2. Nf3 {[%emt 0:00:00]} d6 {[%emt 0:00:00]} 3. d4 {[%emt 0:00:00]} cxd4 {[%emt 0:00:00]} 4. Nxd4 {[%emt 0:00:00]} Nf6 {[%emt 0:00:05]} 5. Nc3 {[%emt 0:00:00]} a6 {[%emt 0:00:05]} 6. a4 {[%emt 0:01:12]} e5 {[%emt 0:03:03]} 7. Nde2 {[%emt 0:05:34]} Nc6 {[%emt 0:02:15]} 8. g3 $15 {[%emt 0:12:42]} Bg4 {[%emt 0:34:28]} 9. Bg2 {[%emt 0:02:55]} Nd4 {[%emt 0:00:12]} 10. Qd3 {[%emt 0:07:07]} Nxe2 {[%emt 0:00:43]} 11. Nxe2 {[%emt 0:07:28]} Be7 {[%emt 0:04:06]} 12. O-O {[%emt 0:07:45]} O-O {[%emt 0:01:56]} 13. c4 {[%emt 0:03:53]} Rc8 {[%emt 0:13:39]} 14. Nc3 {[%emt 0:05:07]} Be6 {[%emt 0:04:19]} 15. b3 {[%emt 0:02:17]} Nd7 {[%emt 0:05:11]} 16. Be3 {[%emt 0:04:09]} Nc5 {[%emt 0:03:15]} 17. Qc2 {[%emt 0:03:28]} b6 {[%emt 0:19:27]} 18. f4 {[%emt 0:08:30]} f6 {[%emt 0:01:06]} 19. f5 {[%emt 0:02:02]} Bf7 {[%emt 0:00:06]} 20. g4 {[%emt 0:00:13]} Rc7 {[%emt 0:01:41]} 21. Rf3 {[%emt 0:04:55]} Qb8 {[%emt 0:00:45]} 22. Rg3 {[%emt 0:01:18]} b5 {[%emt 0:01:42]} 23. Nd5 {[%emt 0:06:25]} Bxd5 {[%emt 0:01:30]} 24. exd5 {[%emt 0:00:11]} Rfc8 {[%emt 0:00:26]} 25. Bf1 {[%emt 0:01:28]} bxa4 {[%emt 0:00:27]} 26. bxa4 {[%emt 0:00:10]} Rb7 {[%emt 0:00:03]} 27. Rg2 {[%emt 0:04:13]} Bd8 {[%emt 0:00:22]} 28. Ra2 {[%emt 0:03:06]} a5 {[%emt 0:01:43]} 29. h4 {[%emt 0:03:25]} Na6 {[%emt 0:00:53]} 30. Qe2 {[%emt 0:01:02]} Rb3 {[%emt 0:00:29]} 31. Bf2 {[%emt 0:00:04]} h6 {[%emt 0:00:48]} 32. Qe4 {[%emt 0:01:34]} Nc5 {[%emt 0:00:34]} 33. Qc2 {[%emt 0:00:52]} Na6 {[%emt 0:00:32]} 34. Qd1 {[%emt 0:00:42]} Rb1 {[%emt 0:00:16]} 35. Qc2 {[%emt 0:00:36]} Rb7 {[%emt 0:00:23]} 36. Qe2 {[%emt 0:00:08]} Rb1 {[%emt 0:00:50]} 37. Kh2 {[%emt 0:00:55]} Nc5 {[%emt 0:00:35]} 38. Ra3 {[%emt 0:00:59]} Qb4 {[%emt 0:00:20]} 39. Rh3 {[%emt 0:01:21]} Nxa4 {[%emt 0:00:31]} 40. g5 {[%emt 0:00:00]} fxg5 {[%emt 0:00:00]} 41. f6 {[%emt 0:04:27]} Bxf6 {[%emt 0:16:24]} 42. hxg5 {[%emt 0:04:56]} hxg5 {[%emt 0:09:35]} 43. Qg4 {[%emt 0:01:51]} Re8 {[%emt 0:05:08]} 44. Bd3 {[%emt 0:02:34]} e4 {[%emt 0:00:28]} 45. Bxe4 {[%emt 0:14:13]} Be5+ {[%emt 0:00:44]} 46. Bg3 {[%emt 0:01:14]} Rb2 {[%emt 0:00:38]} 47. Rh8+ {[%emt 0:00:56]} Kf7 {[%emt 0:00:01]} 48. Qh5+ {[%emt 0:06:03] Nc5} 1-0

[Event "IND-ch Women 2019"]
[Site "Karaikkudi"]
[Date "2019.07.25"]
[Round "9.19"]
[White "Jyothsna L"]
[Black "Abhirami Madabushi"]
[Result "1-0"]
[ECO "A48"]
[WhiteElo "1939"]
[BlackElo "1689"]
[Annotator "NA"]
[PlyCount "85"]
[EventDate "2019.07.19"]
[EventType "swiss"]
[EventCountry "IND"]
[SourceTitle "playchess.com"]
[Source "ChessBase"]
[SourceQuality "1"]
[TimeControl "40/5400+30:1800+30"]

1. d4 {[%emt 0:01:05]} Nf6 {[%emt 0:00:00]} 2. Nf3 {[%emt 0:00:02]} g6 {[%emt 0:00:00]} 3. Bf4 {[%emt 0:00:07]} Bg7 {[%emt 0:00:00]} 4. e3 {[%emt 0:00:07]} O-O {[%emt 0:00:06]} 5. Be2 {[%emt 0:00:02]} c5 {[%emt 0:00:18]} 6. c3 {[%emt 0:00:54]} cxd4 {[%emt 0:00:22]} 7. exd4 {[%emt 0:01:46]} d6 {[%emt 0:00:34]} 8. O-O {[%emt 0:01:23]} a6 {[%emt 0:02:05]} 9. a4 {[%emt 0:07:21]} b6 {[%emt 0:05:09]} 10. Nbd2 {[%emt 0:02:40]} Nc6 $11 {[%emt 0:02:15]} 11. h3 {[%emt 0:06:17]} Bb7 {[%emt 0:04:42]} 12. Re1 {[%emt 0:04:15]} Na7 {[%emt 0:08:20]} 13. Bd3 {[%emt 0:11:25]} b5 {[%emt 0:01:50]} 14. axb5 {[%emt 0:09:19]} axb5 {[%emt 0:00:22]} 15. Bg5 {[%emt 0:08:26]} Qd7 {[%emt 0:10:26]} 16. Qe2 {[%emt 0:04:37]} e6 {[%emt 0:05:36]} 17. Ra5 {[%emt 0:10:49]} Nd5 {[%emt 0:01:19]} 18. Rea1 {[%emt 0:02:22]} Bc6 {[%emt 0:03:55]} 19. Ne4 {[%emt 0:04:52]} h6 {[%emt 0:00:35]} 20. Bd2 {[%emt 0:01:39]} f5 {[%emt 0:06:08]} 21. Nxd6 {[%emt 0:03:44]} Kh7 {[%emt 0:01:34]} 22. Ne5 {[%emt 0:05:23]} Qxd6 {[%emt 0:00:28]} 23. Rxa7 {[%emt 0:00:14]} b4 {[%emt 0:01:17]} 24. Nxc6 {[%emt 0:06:50]} Qxc6 {[%emt 0:00:05]} 25. R1a6 {[%emt 0:01:13]} Nb6 {[%emt 0:01:27]} 26. Bb5 {[%emt 0:02:34]} Qd5 {[%emt 0:00:28]} 27. Rxg7+ {[%emt 0:01:49]} Kxg7 {[%emt 0:00:07]} 28. Rxb6 {[%emt 0:00:02]} bxc3 {[%emt 0:02:33]} 29. Bxc3 {[%emt 0:00:38]} f4 {[%emt 0:05:26]} 30. Qxe6 {[%emt 0:01:10]} Ra1+ {[%emt 0:00:39]} 31. Kh2 {[%emt 0:00:09]} Qxe6 {[%emt 0:00:05]} 32. Rxe6 {[%emt 0:00:07]} f3 {[%emt 0:01:18]} 33. gxf3 {[%emt 0:00:22]} Rxf3 {[%emt 0:00:03]} 34. Kg2 {[%emt 0:00:30]} Rf5 {[%emt 0:00:03]} 35. Re5 {[%emt 0:00:09]} Rxe5 {[%emt 0:00:09]} 36. dxe5 {[%emt 0:00:14]} Kf7 {[%emt 0:00:12]} 37. Bc4+ {[%emt 0:00:05]} Ke7 {[%emt 0:00:09]} 38. Bb4+ {[%emt 0:00:05]} Ke8 {[%emt 0:00:04]} 39. e6 {[%emt 0:00:23]} Ra7 {[%emt 0:00:33]} 40. Bb5+ {[%emt 0:00:00]} Kd8 {[%emt 0:00:00]} 41. e7+ {[%emt 0:00:10]} Rxe7 {[%emt 0:00:10]} 42. Bxe7+ {[%emt 0:00:04]} Kxe7 {[%emt 0:00:07]} 43. h4 {[%emt 0:00:04]} 1-0